{"text_format":"3","workbook":"xlsx","n_sheets":26,"sheets":["Начало","1","2","3","4","5","6","7","8","9","10","11","12","13","14","15","16","17","18","19","20","21","22","23","24","Дополнительные сведения"],"not_rendered":{"images":24,"defined_names":5,"pivot_tables":19},"read":"whole","date_system":"1900"}

{"sheet":"Начало","index":0,"n_rows":5,"n_cols":1,"rows_kept":5}
["Добро пожаловать!\nИнструкции для средств чтения с экрана: Дополнительные действия со сводными таблицами. В простой сводной таблице представлена общая сводка данных, но иногда требуются подробные ответы на конкретные вопросы. В этом случае вам помогут дополнительные поля столбцов и строк. \nВ инструкциях будет указано, в какие ячейки следует перейти, чтобы воспользоваться возможностью или получить сведения.\nЧтобы начать, нажмите клавиши CTRL+PAGE DOWN."]
["Дополнительные действия со сводными таблицами"]
["В простой сводной таблице представлена общая сводка данных,\nно иногда требуются подробные ответы на конкретные вопросы.\nВ этом случае вам помогут дополнительные поля столбцов и строк."]
["ПОЛЕЗНЫЕ СВЕДЕНИЯ\nВы ознакомились с первым учебником? Если нет, откройте вкладку «Файл», нажмите «Создать» и выберите шаблон «Создание первой сводной таблицы»."]
["Чтобы вернуться в начало страницы, нажмите клавиши CTRL+HOME. Чтобы начать курс, нажмите клавиши CTRL+PAGE DOWN."]

{"sheet":"1","index":1,"n_rows":17,"n_cols":9,"rows_kept":17}
["В первом учебнике мы познакомили вас с понятием сводной таблицы. Мы также объяснили, как использовать поле строки в качестве условия для детализации поля значения.   "]
["Ячейки с H10 по I14 содержат сводную таблицу, которая подытоживает данные из ячеек с B8 по E16. Сводная таблица состоит из двух столбцов: «Покупатель» и «Сумма по полю Сумма». В столбце «Покупатель» содержатся значения «Папа», «Мама», «Арина» и «Общий итог». Столбец «Сумма по полю Сумма» содержит значения «220 ₽», «270 ₽», «810 ₽» и «1 300 ₽». Столбец «Покупатель» представляет собой поле строки, а «Сумма по полю Сумма» — поле значения."]
["Чтобы продолжить работу с учебником, нажмите клавиши CTRL+PAGE DOWN. Чтобы перейти на предыдущий лист, нажмите клавиши CTRL+PAGE UP."]
[]
[]
[]
[]
[]
["В этом примере показано, как поле строки…","Дата","Покупатель","Тип","Сумма"]
["Детализирует поле значения.","2017-01-01","Папа","Подарки",{"v":95,"d":"95 ₽"}]
[null,"2017-01-15","Мама","Еда",{"v":325,"d":"325 ₽"},null,null,"Покупатель","Сумма по полю Сумма"]
[null,"2017-01-17","Мама","Билеты",{"v":250,"d":"250 ₽"},null,null,"Папа",{"v":220,"d":"220 ₽"}]
[null,"2017-01-21","Папа","Еда",{"v":125,"d":"125 ₽"},null,null,"Арина",{"v":270,"d":"270 ₽"}]
[null,"2017-02-02","Мама","Еда",{"v":235,"d":"235 ₽"},null,null,"Мама",{"v":810,"d":"810 ₽"}]
[null,"2017-02-20","Арина","Музыка",{"v":20,"d":"20 ₽"},null,null,"Grand Total",{"v":1300,"d":"1,300 ₽"}]
[null,"2017-02-25","Арина","Билеты",{"v":125,"d":"125 ₽"}]
[null,"2017-02-25","Арина","Спорт",{"v":125,"d":"125 ₽"}]

{"sheet":"2","index":2,"n_rows":108,"n_cols":7,"rows_kept":108}
["При первом взгляде на сводную таблицу может возникнуть ощущение, что информации недостаточно."]
["У вас могут появиться следующие вопросы: «Когда были сделаны эти покупки?», «На что потратил деньги каждый из перечисленных?», «Какую дорогостоящую покупку сделала мама?»"]
["В этом примере в ячейках с F11 по G15 показана та же сводная таблица из двух столбцов, что и раньше. Столбец «Покупатель» является полем строки и содержит значения «Папа», «Мама», «Арина» и «Общий итог». Столбец «Сумма по полю Сумма» является полем значения и содержит значения «220 ₽», «270 ₽», «810 ₽» и «1 300 ₽». "]
["Чтобы продолжить работу с учебником, нажмите клавиши CTRL+PAGE DOWN. Чтобы перейти на предыдущий лист, нажмите клавиши CTRL+PAGE UP."]
[]
[]
[]
[]
[]
[]
[{"$nulls":5},"Покупатель","Сумма по полю Сумма"]
[{"$nulls":5},"Папа",{"v":220,"d":"220 ₽"}]
[{"$nulls":5},"Арина",{"v":270,"d":"270 ₽"}]
[{"$nulls":5},"Мама",{"v":810,"d":"810 ₽"}]
[{"$nulls":5},"Grand Total",{"v":1300,"d":"1,300 ₽"}]
{"$rows_empty":84}
[null,"Дата","Покупатель","Тип","Сумма"]
[null,"2017-01-01","Папа","Подарки",{"v":95,"d":"95 ₽"}]
[null,"2017-01-15","Мама","Еда",{"v":325,"d":"325 ₽"}]
[null,"2017-01-17","Мама","Билеты",{"v":250,"d":"250 ₽"}]
[null,"2017-01-21","Папа","Еда",{"v":125,"d":"125 ₽"}]
[null,"2017-02-02","Мама","Еда",{"v":235,"d":"235 ₽"}]
[null,"2017-02-20","Арина","Музыка",{"v":20,"d":"20 ₽"}]
[null,"2017-02-25","Арина","Билеты",{"v":125,"d":"125 ₽"}]
[null,"2017-02-25","Арина","Спорт",{"v":125,"d":"125 ₽"}]

{"sheet":"3","index":3,"n_rows":108,"n_cols":7,"rows_kept":108}
["Все эти вопросы уместны, но сейчас мы остановимся только на одном из них."]
["На что потратил деньги каждый из перечисленных?"]
["Напомним, что в ячейках с F11 по G15 показана та же сводная таблица из двух столбцов, что и раньше. Столбец «Покупатель» является полем строки и содержит значения «Папа», «Мама», «Арина» и «Общий итог». Столбец «Сумма по полю Сумма» является полем значения и содержит значения «220 ₽», «270 ₽», «810 ₽» и «1 300 ₽». "]
["Чтобы продолжить работу с учебником, нажмите клавиши CTRL+PAGE DOWN. Чтобы перейти на предыдущий лист, нажмите клавиши CTRL+PAGE UP."]
[]
[]
[]
[]
[]
[]
[{"$nulls":5},"Покупатель","Сумма по полю Сумма"]
[{"$nulls":5},"Папа",{"v":220,"d":"220 ₽"}]
[{"$nulls":5},"Арина",{"v":270,"d":"270 ₽"}]
[{"$nulls":5},"Мама",{"v":810,"d":"810 ₽"}]
[{"$nulls":5},"Grand Total",{"v":1300,"d":"1,300 ₽"}]
{"$rows_empty":84}
[null,"Дата","Покупатель","Тип","Сумма"]
[null,"2017-01-01","Папа","Подарки",{"v":95,"d":"95 ₽"}]
[null,"2017-01-15","Мама","Еда",{"v":325,"d":"325 ₽"}]
[null,"2017-01-17","Мама","Билеты",{"v":250,"d":"250 ₽"}]
[null,"2017-01-21","Папа","Еда",{"v":125,"d":"125 ₽"}]
[null,"2017-02-02","Мама","Еда",{"v":235,"d":"235 ₽"}]
[null,"2017-02-20","Арина","Музыка",{"v":20,"d":"20 ₽"}]
[null,"2017-02-25","Арина","Билеты",{"v":125,"d":"125 ₽"}]
[null,"2017-02-25","Арина","Спорт",{"v":125,"d":"125 ₽"}]

{"sheet":"4","index":4,"n_rows":108,"n_cols":9,"rows_kept":108}
["Последним мы задали вопрос «На что потратил деньги каждый из перечисленных?»"]
["Мы ответили на этот вопрос, добавив поле столбца для категории «Тип». В результате в сводной таблице теперь пять новых столбцов, показывающих типы покупок каждого человека. "]
["Наша новая сводная таблица теперь занимает ячейки с C10 по I15 и содержит столбцы «Покупатель», «Еда», «Музыка», «Спорт», «Билеты», «Подарки» и «Общий итог». Столбцы «Покупатель» и «Общий итог» не изменились, а новые столбцы добавлены между ними."]
["Чтобы продолжить работу с учебником, нажмите клавиши CTRL+PAGE DOWN. Чтобы перейти на предыдущий лист, нажмите клавиши CTRL+PAGE UP."]
[]
[]
[]
[]
[]
[null,null,"Сумма по полю Сумма","Тип"]
[null,null,"Покупатель","Еда","Музыка","Спорт","Билеты","Подарки","Grand Total"]
[null,null,"Папа",{"v":125,"d":"125 ₽"},{"$nulls":3},{"v":95,"d":"95 ₽"},{"v":220,"d":"220 ₽"}]
[null,null,"Арина",null,{"v":20,"d":"20 ₽"},{"v":125,"d":"125 ₽"},{"v":125,"d":"125 ₽"},null,{"v":270,"d":"270 ₽"}]
[null,null,"Мама",{"v":560,"d":"560 ₽"},null,null,{"v":250,"d":"250 ₽"},null,{"v":810,"d":"810 ₽"}]
[null,null,"Grand Total",{"v":685,"d":"685 ₽"},{"v":20,"d":"20 ₽"},{"v":125,"d":"125 ₽"},{"v":375,"d":"375 ₽"},{"v":95,"d":"95 ₽"},{"v":1300,"d":"1,300 ₽"}]
{"$rows_empty":84}
[null,"Дата","Покупатель","Тип","Сумма"]
[null,"2017-01-01","Папа","Подарки",{"v":95,"d":"95 ₽"}]
[null,"2017-01-15","Мама","Еда",{"v":325,"d":"325 ₽"}]
[null,"2017-01-17","Мама","Билеты",{"v":250,"d":"250 ₽"}]
[null,"2017-01-21","Папа","Еда",{"v":125,"d":"125 ₽"}]
[null,"2017-02-02","Мама","Еда",{"v":235,"d":"235 ₽"}]
[null,"2017-02-20","Арина","Музыка",{"v":20,"d":"20 ₽"}]
[null,"2017-02-25","Арина","Билеты",{"v":125,"d":"125 ₽"}]
[null,"2017-02-25","Арина","Спорт",{"v":125,"d":"125 ₽"}]

{"sheet":"5","index":5,"n_rows":108,"n_cols":9,"rows_kept":108}
["Если вам сложно понять содержимое сводной таблицы, попробуйте сделать следующее: читайте содержимое сначала слева, потом сверху, затем снизу. В примере ниже папа (ячейка C12) потратил на еду 125 ₽ (ячейка D12) и на подарки 95 ₽ (ячейка E12), а общий итог составил 220 ₽ (ячейка I12). В строках 13 и 14 показаны данные для Арины и мамы, а в строке 15 представлены общие итоги."]
["Чтобы продолжить работу с учебником, нажмите клавиши CTRL+PAGE DOWN. Чтобы перейти на предыдущий лист, нажмите клавиши CTRL+PAGE UP."]
{"$rows_empty":9}
[null,null,"Сумма по полю Сумма","Тип"]
[null,null,"Покупатель","Еда","Подарки","Музыка","Спорт","Билеты","Grand Total"]
[null,null,"Папа",{"v":125,"d":"125 ₽"},{"v":95,"d":"95 ₽"},{"$nulls":3},{"v":220,"d":"220 ₽"}]
[null,null,"Арина",null,null,{"v":20,"d":"20 ₽"},{"v":125,"d":"125 ₽"},{"v":125,"d":"125 ₽"},{"v":270,"d":"270 ₽"}]
[null,null,"Мама",{"v":560,"d":"560 ₽"},{"$nulls":3},{"v":250,"d":"250 ₽"},{"v":810,"d":"810 ₽"}]
[null,null,"Grand Total",{"v":685,"d":"685 ₽"},{"v":95,"d":"95 ₽"},{"v":20,"d":"20 ₽"},{"v":125,"d":"125 ₽"},{"v":375,"d":"375 ₽"},{"v":1300,"d":"1,300 ₽"}]
{"$rows_empty":82}
[null,"Дата","Покупатель","Тип","Сумма"]
[null,"2017-01-01","Папа","Подарки",{"v":95,"d":"95 ₽"}]
[null,"2017-01-15","Мама","Еда",{"v":325,"d":"325 ₽"}]
[null,"2017-01-17","Мама","Билеты",{"v":250,"d":"250 ₽"}]
[null,"2017-01-21","Папа","Еда",{"v":125,"d":"125 ₽"}]
[null,"2017-02-02","Мама","Еда",{"v":235,"d":"235 ₽"}]
[null,"2017-02-20","Арина","Музыка",{"v":20,"d":"20 ₽"}]
[null,"2017-02-25","Арина","Билеты",{"v":125,"d":"125 ₽"}]
[null,"2017-02-25","Арина","Спорт",{"v":125,"d":"125 ₽"}]

{"sheet":"6","index":6,"n_rows":3,"n_cols":1,"rows_kept":3}
["Пока этого делать не нужно, но всего через пару шагов вы начнете работать со сводной таблицей. Сначала необходимо добавить сведения в область «Столбцы». Для этого понадобится поместить поле «Тип» в область «Столбцы»."]
["Изображение списка полей сводной таблицы со стрелкой, которая показывает, что поле «Тип» нужно перетащить в область «Столбцы»"]
["Чтобы продолжить работу с учебником, нажмите клавиши CTRL+PAGE DOWN. Чтобы перейти на предыдущий лист, нажмите клавиши CTRL+PAGE UP."]

{"sheet":"7","index":7,"n_rows":108,"n_cols":8,"rows_kept":108}
["1. В этом примере сводная таблица располагается в ячейках с B16 по C20. Перейдите в любую из этих ячеек."]
["2. Нажмите клавиши ALT+БИ, Л, чтобы запустить список «Поля сводной таблицы». По умолчанию курсор переместится в текстовое поле «Поиск»: поле ввода поискового запроса"]
["3. Нажимайте клавиши со стрелками, чтобы выделить поле «Тип». После этого нажмите клавишу ПРОБЕЛ, чтобы добавить поле «Тип» в область «Строки». "]
["4. Нажмите клавишу TAB, чтобы выделить поле \"Тип\". Нажмите клавишу ВВОД, а затем клавиши со стрелками, чтобы выбрать пункт \"Переместить в названия столбцов\". Нажмите клавишу ВВОД, чтобы добавить поле \"Тип\" в область \"Столбцы\". Нажмите клавиши ALT+БИ+Л, чтобы выйти из области «Поля сводной таблицы»."]
["Чтобы продолжить работу с руководством, нажмите клавиши CTRL+PAGE DOWN. Чтобы перейти на предыдущий лист, нажмите клавиши CTRL+PAGE UP."]
[]
[]
[]
[{"$nulls":7},{"$f":"IF(AND($B$17=\"Названия строк\",$H$20=810),\"Хорошо! Вы добавили \",\" \")","v":" "}]
[{"$nulls":7},{"$f":"IF(AND($B$17=\"Названия строк\",$H$20=810),\"первое поле столбца.\",\" \")","v":" "}]
[{"$nulls":7},{"$f":"IF(AND($B$17=\"Названия строк\",$H$20=810),\"Щелкните «Далее»,\",\" \")","v":" "}]
[{"$nulls":7},{"$f":"IF(AND($B$17=\"Названия строк\",$H$20=810),\"чтобы продолжить...\",\" \")","v":" "}]
[]
[]
[]
[null,"Покупатель","Сумма по полю Сумма"]
[null,"Папа",{"v":220,"d":"220 ₽"}]
[null,"Арина",{"v":270,"d":"270 ₽"}]
[null,"Мама",{"v":810,"d":"810 ₽"}]
[null,"Grand Total",{"v":1300,"d":"1,300 ₽"}]
{"$rows_empty":79}
[null,"Дата","Покупатель","Тип","Сумма"]
[null,"2017-01-01","Папа","Подарки",{"v":95,"d":"95 ₽"}]
[null,"2017-01-15","Мама","Еда",{"v":325,"d":"325 ₽"}]
[null,"2017-01-17","Мама","Билеты",{"v":250,"d":"250 ₽"}]
[null,"2017-01-21","Папа","Еда",{"v":125,"d":"125 ₽"}]
[null,"2017-02-02","Мама","Еда",{"v":235,"d":"235 ₽"}]
[null,"2017-02-20","Арина","Музыка",{"v":20,"d":"20 ₽"}]
[null,"2017-02-25","Арина","Билеты",{"v":125,"d":"125 ₽"}]
[null,"2017-02-25","Арина","Спорт",{"v":125,"d":"125 ₽"}]

{"sheet":"8","index":8,"n_rows":108,"n_cols":9,"rows_kept":108}
["Давайте рассмотрим созданную сводную таблицу, в которую мы добавили цвета, чтобы поля строк, столбцов и значений можно было отличить друг от друга."]
["Поля строк располагаются в ячейках с C10 по C13 и выделены желтым цветом."]
["Поля столбцов находятся в ячейках с D9 по H10 и выделены оранжевым цветом."]
["Поля значений занимают ячейки с D11 по H13 и выделены синим цветом."]
["Чтобы продолжить работу с учебником, нажмите клавиши CTRL+PAGE DOWN. Чтобы перейти на предыдущий лист, нажмите клавиши CTRL+PAGE UP."]
[]
[]
[]
[null,null,"Сумма по полю Сумма","Тип"]
[null,null,"Покупатель","Еда","Подарки","Музыка","Спорт","Билеты","Grand Total"]
[null,null,"Папа",{"v":125,"d":"125 ₽"},{"v":95,"d":"95 ₽"},{"$nulls":3},{"v":220,"d":"220 ₽"}]
[null,null,"Арина",null,null,{"v":20,"d":"20 ₽"},{"v":125,"d":"125 ₽"},{"v":125,"d":"125 ₽"},{"v":270,"d":"270 ₽"}]
[null,null,"Мама",{"v":560,"d":"560 ₽"},{"$nulls":3},{"v":250,"d":"250 ₽"},{"v":810,"d":"810 ₽"}]
[null,null,"Grand Total",{"v":685,"d":"685 ₽"},{"v":95,"d":"95 ₽"},{"v":20,"d":"20 ₽"},{"v":125,"d":"125 ₽"},{"v":375,"d":"375 ₽"},{"v":1300,"d":"1,300 ₽"}]
{"$rows_empty":85}
[null,"Дата","Покупатель","Тип","Сумма"]
[null,"2017-01-01","Папа","Подарки",{"v":95,"d":"95 ₽"}]
[null,"2017-01-15","Мама","Еда",{"v":325,"d":"325 ₽"}]
[null,"2017-01-17","Мама","Билеты",{"v":250,"d":"250 ₽"}]
[null,"2017-01-21","Папа","Еда",{"v":125,"d":"125 ₽"}]
[null,"2017-02-02","Мама","Еда",{"v":235,"d":"235 ₽"}]
[null,"2017-02-20","Арина","Музыка",{"v":20,"d":"20 ₽"}]
[null,"2017-02-25","Арина","Билеты",{"v":125,"d":"125 ₽"}]
[null,"2017-02-25","Арина","Спорт",{"v":125,"d":"125 ₽"}]

{"sheet":"9","index":9,"n_rows":3,"n_cols":1,"rows_kept":3}
["На это можно посмотреть по-другому: поле строки расположено слева, а поле столбца — сверху. В каждом из этих полей указано условие для формирования значения в поле значения."]
["На схематическом изображении показан прямоугольник, разделенный на четыре области: поле строки — желтая область в левом нижнем углу, поле столбца — оранжевая область в правом верхнем углу, поле значения — синяя область в правом нижнем углу."]
["Чтобы продолжить работу с учебником, нажмите клавиши CTRL+PAGE DOWN. Чтобы перейти на предыдущий лист, нажмите клавиши CTRL+PAGE UP."]

{"sheet":"10","index":10,"n_rows":3,"n_cols":1,"rows_kept":3}
["Используйте такой же подход при работе со списком полей. Поле строки расположено слева, а поле столбца — сверху. В каждом из этих полей указано условие для формирования значения в поле значения."]
["На схематическом изображении показан список поля сводной таблицы: поле строки — желтая область в левом нижнем углу, поле столбца — оранжевая область в правом верхнем углу, поле значения — синяя область в правом нижнем углу."]
["Чтобы продолжить работу с учебником, нажмите клавиши CTRL+PAGE DOWN. Чтобы перейти на предыдущий лист, нажмите клавиши CTRL+PAGE UP."]

{"sheet":"11","index":11,"n_rows":121,"n_cols":24,"rows_kept":121}
["Обратите внимание: при добавлении в сводную таблицу большого числа столбцов она становится очень широкой. "]
["В этом примере сводная таблица занимает ячейки с C10 по X15, поскольку из-за поля столбца добавлены 20 новых столбцов. Это очень много, и придется часто прибегать к прокрутке…"]
["Чтобы продолжить работу с учебником, нажмите клавиши CTRL+PAGE DOWN. Чтобы перейти на предыдущий лист, нажмите клавиши CTRL+PAGE UP."]
[]
[]
[]
[]
[]
[]
[null,null,"Сумма по полю Сумма","Тип"]
[null,null,"Покупатель","Книги","Еда","Топливо","Музыка","Спорт","Билеты","Рестораны","Электричество","Медицина","Стоматология","Налоги","Страхование автомобиля","Стоянка","Электроника","Авиабилеты","Одежда","Клубные членские взносы","Страхование жизни","Страхование жилища","Уроки музыки","Grand Total"]
[null,null,"Папа",{"$nulls":4},{"v":1000,"d":"1,000 ₽"},{"$nulls":5},{"v":500,"d":"500 ₽"},{"$nulls":3},{"v":500,"d":"500 ₽"},{"$nulls":5},{"v":2000,"d":"2,000 ₽"}]
[null,null,"Арина",{"v":250,"d":"250 ₽"},null,null,{"v":20,"d":"20 ₽"},null,{"v":125,"d":"125 ₽"},{"v":20,"d":"20 ₽"},{"$nulls":5},{"v":20,"d":"20 ₽"},{"v":125,"d":"125 ₽"},null,{"v":125,"d":"125 ₽"},{"$nulls":3},{"v":250,"d":"250 ₽"},{"v":935,"d":"935 ₽"}]
[null,null,"Мама",null,{"v":470,"d":"470 ₽"},{"v":74,"d":"74 ₽"},{"$nulls":4},{"v":70,"d":"70 ₽"},{"v":74,"d":"74 ₽"},{"v":235,"d":"235 ₽"},null,{"v":74,"d":"74 ₽"},{"$nulls":4},{"v":125,"d":"125 ₽"},{"v":70,"d":"70 ₽"},{"v":235,"d":"235 ₽"},null,{"v":1427,"d":"1,427 ₽"}]
[null,null,"Grand Total",{"v":250,"d":"250 ₽"},{"v":470,"d":"470 ₽"},{"v":74,"d":"74 ₽"},{"v":20,"d":"20 ₽"},{"v":1000,"d":"1,000 ₽"},{"v":125,"d":"125 ₽"},{"v":20,"d":"20 ₽"},{"v":70,"d":"70 ₽"},{"v":74,"d":"74 ₽"},{"v":235,"d":"235 ₽"},{"v":500,"d":"500 ₽"},{"v":74,"d":"74 ₽"},{"v":20,"d":"20 ₽"},{"v":125,"d":"125 ₽"},{"v":500,"d":"500 ₽"},{"v":125,"d":"125 ₽"},{"v":125,"d":"125 ₽"},{"v":70,"d":"70 ₽"},{"v":235,"d":"235 ₽"},{"v":250,"d":"250 ₽"},{"v":4362,"d":"4,362 ₽"}]
{"$rows_empty":84}
[null,"Дата","Покупатель","Тип","Сумма"]
[null,"2017-01-17","Папа","Спорт",{"v":1000,"d":"1,000 ₽"}]
[null,"2017-01-17","Папа","Авиабилеты",{"v":500,"d":"500 ₽"}]
[null,"2017-01-17","Папа","Налоги",{"v":500,"d":"500 ₽"}]
[null,"2017-02-20","Арина","Музыка",{"v":20,"d":"20 ₽"}]
[null,"2017-02-25","Арина","Билеты",{"v":125,"d":"125 ₽"}]
[null,"2017-01-21","Арина","Книги",{"v":250,"d":"250 ₽"}]
[null,"2017-02-20","Арина","Рестораны",{"v":20,"d":"20 ₽"}]
[null,"2017-02-25","Арина","Одежда",{"v":125,"d":"125 ₽"}]
[null,"2017-01-21","Арина","Уроки музыки",{"v":250,"d":"250 ₽"}]
[null,"2017-02-20","Арина","Стоянка",{"v":20,"d":"20 ₽"}]
[null,"2017-02-25","Арина","Электроника",{"v":125,"d":"125 ₽"}]
[null,"2017-01-01","Мама","Топливо",{"v":74,"d":"74 ₽"}]
[null,"2017-01-15","Мама","Еда",{"v":235,"d":"235 ₽"}]
[null,"2017-01-21","Мама","Клубные членские взносы",{"v":125,"d":"125 ₽"}]
[null,"2017-02-02","Мама","Еда",{"v":235,"d":"235 ₽"}]
[null,"2017-01-01","Мама","Медицина",{"v":74,"d":"74 ₽"}]
[null,"2017-01-15","Мама","Электричество",{"v":70,"d":"70 ₽"}]
[null,"2017-02-02","Мама","Стоматология",{"v":235,"d":"235 ₽"}]
[null,"2017-01-01","Мама","Страхование автомобиля",{"v":74,"d":"74 ₽"}]
[null,"2017-01-15","Мама","Страхование жизни",{"v":70,"d":"70 ₽"}]
[null,"2017-02-02","Мама","Страхование жилища",{"v":235,"d":"235 ₽"}]

{"sheet":"12","index":12,"n_rows":119,"n_cols":5,"rows_kept":119}
["Чтобы избегать слишком широких сводных таблиц, можно использовать второе поле строки. Второе поле строки появится с отступом под первым."]
["В этом примере сводная таблица располагается в ячейках с D8 по E32. В столбце D перечислены первые поля строк: «Папа», «Арина» и «Мама». Под ними в виде вторых полей строк указаны типы расходов: «Спорт», «Авиабилеты», «Рестораны» и т. д."]
["ПОЛЕЗНЫЕ СВЕДЕНИЯ\nПри добавлении второго поля строки сводная таблица становится вертикально ориентированной. Некоторые люди предпочитают работать с вертикальными сводными таблицами, так как реже приходится прибегать к горизонтальной прокрутке."]
["ЖАРГОН EXCEL\nВторое поле строки также называют дополнительным полем строки."]
["Чтобы продолжить работу с учебником, нажмите клавиши CTRL+PAGE DOWN. Чтобы перейти на предыдущий лист, нажмите клавиши CTRL+PAGE UP."]
[]
[]
[{"$nulls":3},"Row Labels","Сумма по полю Сумма"]
[{"$nulls":3},"Папа",{"v":2000,"d":"2,000 ₽"}]
[{"$nulls":3},"Спорт",{"v":1000,"d":"1,000 ₽"}]
[{"$nulls":3},"Налоги",{"v":500,"d":"500 ₽"}]
[{"$nulls":3},"Авиабилеты",{"v":500,"d":"500 ₽"}]
[{"$nulls":3},"Арина",{"v":935,"d":"935 ₽"}]
[{"$nulls":3},"Книги",{"v":250,"d":"250 ₽"}]
[{"$nulls":3},"Музыка",{"v":20,"d":"20 ₽"}]
[{"$nulls":3},"Билеты",{"v":125,"d":"125 ₽"}]
[{"$nulls":3},"Рестораны",{"v":20,"d":"20 ₽"}]
[{"$nulls":3},"Стоянка",{"v":20,"d":"20 ₽"}]
[{"$nulls":3},"Электроника",{"v":125,"d":"125 ₽"}]
[{"$nulls":3},"Одежда",{"v":125,"d":"125 ₽"}]
[{"$nulls":3},"Уроки музыки",{"v":250,"d":"250 ₽"}]
[{"$nulls":3},"Мама",{"v":1427,"d":"1,427 ₽"}]
[{"$nulls":3},"Еда",{"v":470,"d":"470 ₽"}]
[{"$nulls":3},"Топливо",{"v":74,"d":"74 ₽"}]
[{"$nulls":3},"Электричество",{"v":70,"d":"70 ₽"}]
[{"$nulls":3},"Медицина",{"v":74,"d":"74 ₽"}]
[{"$nulls":3},"Стоматология",{"v":235,"d":"235 ₽"}]
[{"$nulls":3},"Страхование автомобиля",{"v":74,"d":"74 ₽"}]
[{"$nulls":3},"Клубные членские взносы",{"v":125,"d":"125 ₽"}]
[{"$nulls":3},"Страхование жизни",{"v":70,"d":"70 ₽"}]
[{"$nulls":3},"Страхование жилища",{"v":235,"d":"235 ₽"}]
[{"$nulls":3},"Grand Total",{"v":4362,"d":"4,362 ₽"}]
{"$rows_empty":65}
[null,"Дата","Покупатель","Тип","Сумма"]
[null,"2017-01-17","Папа","Спорт",{"v":1000,"d":"1,000 ₽"}]
[null,"2017-01-17","Папа","Авиабилеты",{"v":500,"d":"500 ₽"}]
[null,"2017-01-17","Папа","Налоги",{"v":500,"d":"500 ₽"}]
[null,"2017-02-20","Арина","Музыка",{"v":20,"d":"20 ₽"}]
[null,"2017-02-25","Арина","Билеты",{"v":125,"d":"125 ₽"}]
[null,"2017-01-21","Арина","Книги",{"v":250,"d":"250 ₽"}]
[null,"2017-02-20","Арина","Рестораны",{"v":20,"d":"20 ₽"}]
[null,"2017-02-25","Арина","Одежда",{"v":125,"d":"125 ₽"}]
[null,"2017-01-21","Арина","Уроки музыки",{"v":250,"d":"250 ₽"}]
[null,"2017-02-20","Арина","Стоянка",{"v":20,"d":"20 ₽"}]
[null,"2017-02-25","Арина","Электроника",{"v":125,"d":"125 ₽"}]
[null,"2017-01-01","Мама","Топливо",{"v":74,"d":"74 ₽"}]
[null,"2017-01-15","Мама","Еда",{"v":235,"d":"235 ₽"}]
[null,"2017-01-21","Мама","Клубные членские взносы",{"v":125,"d":"125 ₽"}]
[null,"2017-02-02","Мама","Еда",{"v":235,"d":"235 ₽"}]
[null,"2017-01-01","Мама","Медицина",{"v":74,"d":"74 ₽"}]
[null,"2017-01-15","Мама","Электричество",{"v":70,"d":"70 ₽"}]
[null,"2017-02-02","Мама","Стоматология",{"v":235,"d":"235 ₽"}]
[null,"2017-01-01","Мама","Страхование автомобиля",{"v":74,"d":"74 ₽"}]
[null,"2017-01-15","Мама","Страхование жизни",{"v":70,"d":"70 ₽"}]
[null,"2017-02-02","Мама","Страхование жилища",{"v":235,"d":"235 ₽"}]

{"sheet":"13","index":13,"n_rows":3,"n_cols":1,"rows_kept":3}
["На следующем листе вы добавите второе поле строки. Чтобы сделать это, перетащите поле «Тип» под поле «Покупатель»."]
["Изображение списка поля сводной таблицы со стрелкой, которая показывает, что поле «Тип» нужно перетащить в область «Строки»."]
["Чтобы продолжить работу с учебником, нажмите клавиши CTRL+PAGE DOWN. Чтобы перейти на предыдущий лист, нажмите клавиши CTRL+PAGE UP."]

{"sheet":"14","index":14,"n_rows":122,"n_cols":9,"rows_kept":122}
["1. В этом примере сводная таблица располагается в ячейках с B16 по C20. Перейдите в любую из этих ячеек. "]
["2. Нажмите клавиши ALT+БИ, Л, чтобы запустить список «Поля сводной таблицы». По умолчанию курсор переместится в текстовое поле «Поиск» с текстом «Введите искомые слова». Не вводите ничего, а просто один раз нажмите клавишу TAB. ПРИМЕЧАНИЕ. Если список полей не отобразился, еще раз нажмите клавиши ALT+БИ, Л."]
["3. С помощью клавиш со стрелками перейдите к полю «Тип». Нажмите клавишу ПРОБЕЛ, чтобы добавить поле «Тип» в область «Строки». "]
["4. Нажмите клавишу ESC, чтобы выйти из области «Поля сводной таблицы». "]
["Чтобы продолжить работу с учебником, нажмите клавиши CTRL+PAGE DOWN. Чтобы перейти на предыдущий лист, нажмите клавиши CTRL+PAGE UP.",{"$nulls":7},{"$f":"IF(AND($B$18=\"Авиабилеты\",$C$36=70),\"Отлично! Вы добавили\",\" \")","v":" "}]
[{"$nulls":8},{"$f":"IF(AND($B$18=\"Авиабилеты\",$C$36=70),\"в сводную таблицу второе\",\" \")","v":" "}]
[{"$nulls":8},{"$f":"IF(AND($B$18=\"Авиабилеты\",$C$36=70),\"поле строки. Прокрутите \",\" \")","v":" "}]
[{"$nulls":8},{"$f":"IF(AND($B$18=\"Авиабилеты\",$C$36=70),\"страницу вниз и щелкните «Далее»...\",\" \")","v":" "}]
{"$rows_empty":7}
[null,"Row Labels","Сумма по полю Сумма"]
[null,"Папа",{"v":2000,"d":"2,000 ₽"}]
[null,"Арина",{"v":935,"d":"935 ₽"}]
[null,"Мама",{"v":1427,"d":"1,427 ₽"}]
[null,"Grand Total",{"v":4362,"d":"4,362 ₽"}]
{"$rows_empty":80}
[null,"Дата","Покупатель","Тип","Сумма"]
[null,"2017-01-17","Папа","Спорт",{"v":1000,"d":"1,000 ₽"}]
[null,"2017-01-17","Папа","Авиабилеты",{"v":500,"d":"500 ₽"}]
[null,"2017-01-17","Папа","Налоги",{"v":500,"d":"500 ₽"}]
[null,"2017-02-20","Арина","Музыка",{"v":20,"d":"20 ₽"}]
[null,"2017-02-25","Арина","Билеты",{"v":125,"d":"125 ₽"}]
[null,"2017-01-21","Арина","Книги",{"v":250,"d":"250 ₽"}]
[null,"2017-02-20","Арина","Рестораны",{"v":20,"d":"20 ₽"}]
[null,"2017-02-25","Арина","Одежда",{"v":125,"d":"125 ₽"}]
[null,"2017-01-21","Арина","Уроки музыки",{"v":250,"d":"250 ₽"}]
[null,"2017-02-20","Арина","Стоянка",{"v":20,"d":"20 ₽"}]
[null,"2017-02-25","Арина","Электроника",{"v":125,"d":"125 ₽"}]
[null,"2017-01-01","Мама","Топливо",{"v":74,"d":"74 ₽"}]
[null,"2017-01-15","Мама","Еда",{"v":235,"d":"235 ₽"}]
[null,"2017-01-21","Мама","Клубные членские взносы",{"v":125,"d":"125 ₽"}]
[null,"2017-02-02","Мама","Еда",{"v":235,"d":"235 ₽"}]
[null,"2017-01-01","Мама","Медицина",{"v":74,"d":"74 ₽"}]
[null,"2017-01-15","Мама","Электричество",{"v":70,"d":"70 ₽"}]
[null,"2017-02-02","Мама","Стоматология",{"v":235,"d":"235 ₽"}]
[null,"2017-01-01","Мама","Страхование автомобиля",{"v":74,"d":"74 ₽"}]
[null,"2017-01-15","Мама","Страхование жизни",{"v":70,"d":"70 ₽"}]
[null,"2017-02-02","Мама","Страхование жилища",{"v":235,"d":"235 ₽"}]

{"sheet":"15","index":15,"n_rows":121,"n_cols":7,"rows_kept":121}
["Если нужно упростить сводную таблицу, можно свернуть данные второго поля строки. "]
["В этом примере сводная таблица располагается в ячейках с F7 по G31. Щелкните ячейку F8, чтобы выбрать первое поле строки «Папа». После этого нажмите клавиши Alt+БИ > Р, чтобы развернуть второе поле, или В, чтобы свернуть его."]
["Чтобы продолжить работу с руководством, нажмите клавиши CTRL+PAGE DOWN. Чтобы перейти на предыдущий лист, нажмите клавиши CTRL+PAGE UP."]
[]
[]
[{"$nulls":5},{"$f":"IF(AND($F$9=\"Арина\",$G$9=935),\"Отлично!\",\" \")","v":" "}]
[{"$nulls":5},"Row Labels","Сумма по полю Сумма"]
[{"$nulls":5},"Папа",{"v":2000,"d":"2,000 ₽"}]
[{"$nulls":5},"Спорт",{"v":1000,"d":"1,000 ₽"}]
[{"$nulls":5},"Налоги",{"v":500,"d":"500 ₽"}]
[{"$nulls":5},"Авиабилеты",{"v":500,"d":"500 ₽"}]
[{"$nulls":5},"Арина",{"v":935,"d":"935 ₽"}]
[{"$nulls":5},"Книги",{"v":250,"d":"250 ₽"}]
[{"$nulls":5},"Рестораны",{"v":20,"d":"20 ₽"}]
[{"$nulls":5},"Электроника",{"v":125,"d":"125 ₽"}]
[{"$nulls":5},"Музыка",{"v":20,"d":"20 ₽"}]
[{"$nulls":5},"Стоянка",{"v":20,"d":"20 ₽"}]
[{"$nulls":5},"Билеты",{"v":125,"d":"125 ₽"}]
[{"$nulls":5},"Одежда",{"v":125,"d":"125 ₽"}]
[{"$nulls":5},"Уроки музыки",{"v":250,"d":"250 ₽"}]
[{"$nulls":5},"Мама",{"v":1427,"d":"1,427 ₽"}]
[{"$nulls":5},"Страхование автомобиля",{"v":74,"d":"74 ₽"}]
[{"$nulls":5},"Стоматология",{"v":235,"d":"235 ₽"}]
[{"$nulls":5},"Электричество",{"v":70,"d":"70 ₽"}]
[{"$nulls":5},"Еда",{"v":470,"d":"470 ₽"}]
[{"$nulls":5},"Топливо",{"v":74,"d":"74 ₽"}]
[{"$nulls":5},"Медицина",{"v":74,"d":"74 ₽"}]
[{"$nulls":5},"Клубные членские взносы",{"v":125,"d":"125 ₽"}]
[{"$nulls":5},"Страхование жизни",{"v":70,"d":"70 ₽"}]
[{"$nulls":5},"Страхование жилища",{"v":235,"d":"235 ₽"}]
[{"$nulls":5},"Grand Total",{"v":4362,"d":"4,362 ₽"}]
{"$rows_empty":68}
[null,"Дата","Покупатель","Тип","Сумма"]
[null,"2017-01-17","Папа","Спорт",{"v":1000,"d":"1,000 ₽"}]
[null,"2017-01-17","Папа","Авиабилеты",{"v":500,"d":"500 ₽"}]
[null,"2017-01-17","Папа","Налоги",{"v":500,"d":"500 ₽"}]
[null,"2017-02-20","Арина","Музыка",{"v":20,"d":"20 ₽"}]
[null,"2017-02-25","Арина","Билеты",{"v":125,"d":"125 ₽"}]
[null,"2017-01-21","Арина","Книги",{"v":250,"d":"250 ₽"}]
[null,"2017-02-20","Арина","Рестораны",{"v":20,"d":"20 ₽"}]
[null,"2017-02-25","Арина","Одежда",{"v":125,"d":"125 ₽"}]
[null,"2017-01-21","Арина","Уроки музыки",{"v":250,"d":"250 ₽"}]
[null,"2017-02-20","Арина","Стоянка",{"v":20,"d":"20 ₽"}]
[null,"2017-02-25","Арина","Электроника",{"v":125,"d":"125 ₽"}]
[null,"2017-01-01","Мама","Топливо",{"v":74,"d":"74 ₽"}]
[null,"2017-01-15","Мама","Еда",{"v":235,"d":"235 ₽"}]
[null,"2017-01-21","Мама","Клубные членские взносы",{"v":125,"d":"125 ₽"}]
[null,"2017-02-02","Мама","Еда",{"v":235,"d":"235 ₽"}]
[null,"2017-01-01","Мама","Медицина",{"v":74,"d":"74 ₽"}]
[null,"2017-01-15","Мама","Электричество",{"v":70,"d":"70 ₽"}]
[null,"2017-02-02","Мама","Стоматология",{"v":235,"d":"235 ₽"}]
[null,"2017-01-01","Мама","Страхование автомобиля",{"v":74,"d":"74 ₽"}]
[null,"2017-01-15","Мама","Страхование жизни",{"v":70,"d":"70 ₽"}]
[null,"2017-02-02","Мама","Страхование жилища",{"v":235,"d":"235 ₽"}]

{"sheet":"16","index":16,"n_rows":121,"n_cols":7,"rows_kept":121}
["Вы можете полностью свернуть или развернуть второе поле строки,чтобы еще больше упростить представление сводной таблицы."]
["Порядок действий"]
["Выделите диапазон данных сводной таблицы, расположенной в ячейках с F7 по G31, а затем нажмите клавиши ALT+БИ, В, чтобы свернуть всю группу. И наоборот, нажмите клавиши ALT+БИ, Р, чтобы развернуть всю группу."]
["Чтобы продолжить работу с учебником, нажмите клавиши CTRL+PAGE DOWN. Чтобы перейти на предыдущий лист, нажмите клавиши CTRL+PAGE UP."]
[]
[{"$nulls":5},{"$f":"IF(AND($F$9=\"Арина\",$G$9=935),\"Точно!\",\" \")","v":" "}]
[{"$nulls":5},"Row Labels","Сумма по полю Сумма"]
[{"$nulls":5},"Папа",{"v":2000,"d":"2,000 ₽"}]
[{"$nulls":5},"Спорт",{"v":1000,"d":"1,000 ₽"}]
[{"$nulls":5},"Налоги",{"v":500,"d":"500 ₽"}]
[{"$nulls":5},"Авиабилеты",{"v":500,"d":"500 ₽"}]
[{"$nulls":5},"Арина",{"v":935,"d":"935 ₽"}]
[{"$nulls":5},"Книги",{"v":250,"d":"250 ₽"}]
[{"$nulls":5},"Рестораны",{"v":20,"d":"20 ₽"}]
[{"$nulls":5},"Электроника",{"v":125,"d":"125 ₽"}]
[{"$nulls":5},"Музыка",{"v":20,"d":"20 ₽"}]
[{"$nulls":5},"Стоянка",{"v":20,"d":"20 ₽"}]
[{"$nulls":5},"Билеты",{"v":125,"d":"125 ₽"}]
[{"$nulls":5},"Одежда",{"v":125,"d":"125 ₽"}]
[{"$nulls":5},"Уроки музыки",{"v":250,"d":"250 ₽"}]
[{"$nulls":5},"Мама",{"v":1427,"d":"1,427 ₽"}]
[{"$nulls":5},"Страхование автомобиля",{"v":74,"d":"74 ₽"}]
[{"$nulls":5},"Стоматология",{"v":235,"d":"235 ₽"}]
[{"$nulls":5},"Электричество",{"v":70,"d":"70 ₽"}]
[{"$nulls":5},"Еда",{"v":470,"d":"470 ₽"}]
[{"$nulls":5},"Топливо",{"v":74,"d":"74 ₽"}]
[{"$nulls":5},"Медицина",{"v":74,"d":"74 ₽"}]
[{"$nulls":5},"Клубные членские взносы",{"v":125,"d":"125 ₽"}]
[{"$nulls":5},"Страхование жизни",{"v":70,"d":"70 ₽"}]
[{"$nulls":5},"Страхование жилища",{"v":235,"d":"235 ₽"}]
[{"$nulls":5},"Grand Total",{"v":4362,"d":"4,362 ₽"}]
{"$rows_empty":68}
[null,"Дата","Покупатель","Тип","Сумма"]
[null,"2017-01-17","Папа","Спорт",{"v":1000,"d":"1,000 ₽"}]
[null,"2017-01-17","Папа","Авиабилеты",{"v":500,"d":"500 ₽"}]
[null,"2017-01-17","Папа","Налоги",{"v":500,"d":"500 ₽"}]
[null,"2017-02-20","Арина","Музыка",{"v":20,"d":"20 ₽"}]
[null,"2017-02-25","Арина","Билеты",{"v":125,"d":"125 ₽"}]
[null,"2017-01-21","Арина","Книги",{"v":250,"d":"250 ₽"}]
[null,"2017-02-20","Арина","Рестораны",{"v":20,"d":"20 ₽"}]
[null,"2017-02-25","Арина","Одежда",{"v":125,"d":"125 ₽"}]
[null,"2017-01-21","Арина","Уроки музыки",{"v":250,"d":"250 ₽"}]
[null,"2017-02-20","Арина","Стоянка",{"v":20,"d":"20 ₽"}]
[null,"2017-02-25","Арина","Электроника",{"v":125,"d":"125 ₽"}]
[null,"2017-01-01","Мама","Топливо",{"v":74,"d":"74 ₽"}]
[null,"2017-01-15","Мама","Еда",{"v":235,"d":"235 ₽"}]
[null,"2017-01-21","Мама","Клубные членские взносы",{"v":125,"d":"125 ₽"}]
[null,"2017-02-02","Мама","Еда",{"v":235,"d":"235 ₽"}]
[null,"2017-01-01","Мама","Медицина",{"v":74,"d":"74 ₽"}]
[null,"2017-01-15","Мама","Электричество",{"v":70,"d":"70 ₽"}]
[null,"2017-02-02","Мама","Стоматология",{"v":235,"d":"235 ₽"}]
[null,"2017-01-01","Мама","Страхование автомобиля",{"v":74,"d":"74 ₽"}]
[null,"2017-01-15","Мама","Страхование жизни",{"v":70,"d":"70 ₽"}]
[null,"2017-02-02","Мама","Страхование жилища",{"v":235,"d":"235 ₽"}]

{"sheet":"17","index":17,"n_rows":107,"n_cols":13,"rows_kept":107}
["Вы можете создать несколько полей столбцов. Их также можно сворачивать и разворачивать."]
["В этом примере сводная таблица расположена в ячейках с B13 по M19. В данном случае категория «Тип» (включающая подкатегории «Еда» и «Коммунальные услуги») указана в области «Столбцы»."]
["ПОПРОБУЙТЕ СДЕЛАТЬ СЛЕДУЮЩЕЕ\nВыделите ячейку C14 («Еда») и нажмите клавиши ALT+БИ, В, чтобы свернуть все поле. Нажмите клавиши ALT+БИ, Р, чтобы развернуть его."]
["Чтобы продолжить работу с учебником, нажмите клавиши CTRL+PAGE DOWN. Чтобы перейти на предыдущий лист, нажмите клавиши CTRL+PAGE UP."]
{"$rows_empty":7}
[null,null,{"$f":"IF(AND($C$16=398,$D$15=\"Январь\"),\"Отлично!\",\" \")","v":" "}]
[null,"Сумма по полю Сумма","Column Labels"]
[null,null,"Еда",{"$nulls":3},"Еда Total","Коммунальные услуги",{"$nulls":3},"Коммунальные услуги Total","Grand Total"]
[null,"Row Labels","Январь","Февраль","Март","Апрель",null,"Январь","Февраль","Март","Апрель"]
[null,"Арина",{"v":74,"d":"74 ₽"},{"v":74,"d":"74 ₽"},{"v":125,"d":"125 ₽"},{"v":125,"d":"125 ₽"},{"v":398,"d":"398 ₽"},{"$nulls":5},{"v":398,"d":"398 ₽"}]
[null,"Папа",{"v":235,"d":"235 ₽"},{"v":235,"d":"235 ₽"},{"v":235,"d":"235 ₽"},{"v":74,"d":"74 ₽"},{"v":779,"d":"779 ₽"},{"$nulls":5},{"v":779,"d":"779 ₽"}]
[null,"Мама",{"$nulls":5},{"v":1000,"d":"1,000 ₽"},{"v":1000,"d":"1,000 ₽"},{"v":20,"d":"20 ₽"},{"v":70,"d":"70 ₽"},{"v":2090,"d":"2,090 ₽"},{"v":2090,"d":"2,090 ₽"}]
[null,"Grand Total",{"v":309,"d":"309 ₽"},{"v":309,"d":"309 ₽"},{"v":360,"d":"360 ₽"},{"v":199,"d":"199 ₽"},{"v":1177,"d":"1,177 ₽"},{"v":1000,"d":"1,000 ₽"},{"v":1000,"d":"1,000 ₽"},{"v":20,"d":"20 ₽"},{"v":70,"d":"70 ₽"},{"v":2090,"d":"2,090 ₽"},{"v":3267,"d":"3,267 ₽"}]
{"$rows_empty":75}
[null,"Месяц","Покупатель","Тип","Сумма"]
[null,"Январь","Арина","Еда",{"v":74,"d":"74 ₽"}]
[null,"Январь","Папа","Еда",{"v":235,"d":"235 ₽"}]
[null,"Январь","Мама","Коммунальные услуги",{"v":1000,"d":"1,000 ₽"}]
[null,"Февраль","Арина","Еда",{"v":74,"d":"74 ₽"}]
[null,"Февраль","Папа","Еда",{"v":235,"d":"235 ₽"}]
[null,"Февраль","Мама","Коммунальные услуги",{"v":1000,"d":"1,000 ₽"}]
[null,"Март","Арина","Еда",{"v":125,"d":"125 ₽"}]
[null,"Март","Папа","Еда",{"v":235,"d":"235 ₽"}]
[null,"Март","Мама","Коммунальные услуги",{"v":20,"d":"20 ₽"}]
[null,"Апрель","Арина","Еда",{"v":125,"d":"125 ₽"}]
[null,"Апрель","Папа","Еда",{"v":74,"d":"74 ₽"}]
[null,"Апрель","Мама","Коммунальные услуги",{"v":70,"d":"70 ₽"}]

{"sheet":"18","index":18,"n_rows":146,"n_cols":5,"rows_kept":146}
["Учтите: если вам нужны более развернутые сведения, можно добавить сколько угодно полей строк и полей столбцов. В этом примере три поля строк."]
["Здесь сводная таблица располагается в ячейках с D8 по E29 и содержит поля для категорий «Время года», «Покупатель» и «Тип» в столбце D и значения категории «Сумма по полю Сумма» в столбце E."]
["ЭКСПЕРТНЫЙ СОВЕТ\nНе следует добавлять слишком много полей. В данном примере это удобно, но иногда большое количество полей с соответствующими отступами может затруднить восприятие сведений в сводной таблице. "]
["Чтобы продолжить работу с учебником, нажмите клавиши CTRL+PAGE DOWN. Чтобы перейти на предыдущий лист, нажмите клавиши CTRL+PAGE UP."]
[]
[]
[]
[{"$nulls":3},"Row Labels","Сумма по полю Сумма"]
[{"$nulls":3},"Осень",{"v":5425,"d":"5,425 ₽"}]
[{"$nulls":3},"Мама",{"v":5425,"d":"5,425 ₽"}]
[{"$nulls":3},"Страхование",{"v":1272,"d":"1,272 ₽"}]
[{"$nulls":3},"Аренда",{"v":3220,"d":"3,220 ₽"}]
[{"$nulls":3},"Коммунальные услуги",{"v":933,"d":"933 ₽"}]
[{"$nulls":3},"Весна",{"v":4760,"d":"4,760 ₽"}]
[{"$nulls":3},"Папа",{"v":4760,"d":"4,760 ₽"}]
[{"$nulls":3},"Страхование",{"v":1040,"d":"1,040 ₽"}]
[{"$nulls":3},"Аренда",{"v":2400,"d":"2,400 ₽"}]
[{"$nulls":3},"Коммунальные услуги",{"v":1320,"d":"1,320 ₽"}]
[{"$nulls":3},"Лето",{"v":3473,"d":"3,473 ₽"}]
[{"$nulls":3},"Мама",{"v":3473,"d":"3,473 ₽"}]
[{"$nulls":3},"Страхование",{"v":1080,"d":"1,080 ₽"}]
[{"$nulls":3},"Аренда",{"v":1260,"d":"1,260 ₽"}]
[{"$nulls":3},"Коммунальные услуги",{"v":1133,"d":"1,133 ₽"}]
[{"$nulls":3},"Зима",{"v":4100,"d":"4,100 ₽"}]
[{"$nulls":3},"Папа",{"v":4100,"d":"4,100 ₽"}]
[{"$nulls":3},"Страхование",{"v":1030,"d":"1,030 ₽"}]
[{"$nulls":3},"Аренда",{"v":1420,"d":"1,420 ₽"}]
[{"$nulls":3},"Коммунальные услуги",{"v":1650,"d":"1,650 ₽"}]
[{"$nulls":3},"Grand Total",{"v":17758,"d":"17,758 ₽"}]
{"$rows_empty":68}
[null,"Покупатель","Время года","Тип","Сумма"]
[null,"Папа","Зима","Страхование",{"v":300,"d":"300 ₽"}]
[null,"Папа","Зима","Аренда",{"v":200,"d":"200 ₽"}]
[null,"Папа","Зима","Коммунальные услуги",{"v":400,"d":"400 ₽"}]
[null,"Папа","Зима","Страхование",{"v":300,"d":"300 ₽"}]
[null,"Папа","Зима","Аренда",{"v":800,"d":"800 ₽"}]
[null,"Папа","Зима","Коммунальные услуги",{"v":400,"d":"400 ₽"}]
[null,"Папа","Зима","Страхование",{"v":200,"d":"200 ₽"}]
[null,"Папа","Зима","Аренда",{"v":300,"d":"300 ₽"}]
[null,"Папа","Зима","Коммунальные услуги",{"v":450,"d":"450 ₽"}]
[null,"Папа","Зима","Страхование",{"v":230,"d":"230 ₽"}]
[null,"Папа","Зима","Аренда",{"v":120,"d":"120 ₽"}]
[null,"Папа","Зима","Коммунальные услуги",{"v":400,"d":"400 ₽"}]
[null,"Папа","Весна","Страхование",{"v":210,"d":"210 ₽"}]
[null,"Папа","Весна","Аренда",{"v":300,"d":"300 ₽"}]
[null,"Папа","Весна","Коммунальные услуги",{"v":400,"d":"400 ₽"}]
[null,"Папа","Весна","Страхование",{"v":230,"d":"230 ₽"}]
[null,"Папа","Весна","Аренда",{"v":900,"d":"900 ₽"}]
[null,"Папа","Весна","Коммунальные услуги",{"v":300,"d":"300 ₽"}]
[null,"Папа","Весна","Страхование",{"v":200,"d":"200 ₽"}]
[null,"Папа","Весна","Аренда",{"v":1000,"d":"1,000 ₽"}]
[null,"Папа","Весна","Коммунальные услуги",{"v":220,"d":"220 ₽"}]
[null,"Папа","Весна","Страхование",{"v":400,"d":"400 ₽"}]
[null,"Папа","Весна","Аренда",{"v":200,"d":"200 ₽"}]
[null,"Папа","Весна","Коммунальные услуги",{"v":400,"d":"400 ₽"}]
[null,"Мама","Лето","Страхование",{"v":100,"d":"100 ₽"}]
[null,"Мама","Лето","Аренда",{"v":30,"d":"30 ₽"}]
[null,"Мама","Лето","Коммунальные услуги",{"v":123,"d":"123 ₽"}]
[null,"Мама","Лето","Страхование",{"v":300,"d":"300 ₽"}]
[null,"Мама","Лето","Аренда",{"v":350,"d":"350 ₽"}]
[null,"Мама","Лето","Коммунальные услуги",{"v":230,"d":"230 ₽"}]
[null,"Мама","Лето","Страхование",{"v":120,"d":"120 ₽"}]
[null,"Мама","Лето","Аренда",{"v":640,"d":"640 ₽"}]
[null,"Мама","Лето","Коммунальные услуги",{"v":530,"d":"530 ₽"}]
[null,"Мама","Лето","Страхование",{"v":560,"d":"560 ₽"}]
[null,"Мама","Лето","Аренда",{"v":240,"d":"240 ₽"}]
[null,"Мама","Лето","Коммунальные услуги",{"v":250,"d":"250 ₽"}]
[null,"Мама","Осень","Страхование",{"v":62,"d":"62 ₽"}]
[null,"Мама","Осень","Аренда",{"v":600,"d":"600 ₽"}]
[null,"Мама","Осень","Коммунальные услуги",{"v":340,"d":"340 ₽"}]
[null,"Мама","Осень","Страхование",{"v":205,"d":"205 ₽"}]
[null,"Мама","Осень","Аренда",{"v":500,"d":"500 ₽"}]
[null,"Мама","Осень","Коммунальные услуги",{"v":403,"d":"403 ₽"}]
[null,"Мама","Осень","Страхование",{"v":503,"d":"503 ₽"}]
[null,"Мама","Осень","Аренда",{"v":2000,"d":"2,000 ₽"}]
[null,"Мама","Осень","Коммунальные услуги",{"v":140,"d":"140 ₽"}]
[null,"Мама","Осень","Страхование",{"v":502,"d":"502 ₽"}]
[null,"Мама","Осень","Аренда",{"v":120,"d":"120 ₽"}]
[null,"Мама","Осень","Коммунальные услуги",{"v":50,"d":"50 ₽"}]

{"sheet":"19","index":19,"n_rows":57,"n_cols":5,"rows_kept":57}
["Готовы к новым упражнениям? Взгляните на данные в ячейках с B7 по E55 ниже. Когда будете готовы, перейдите на следующий лист и на практике примените полученные знания. "]
["Не нужно читать все строки данных. Просто просмотрите имена полей в строке 7. Вы будете работать с ними на следующем листе. "]
["Чтобы продолжить работу с учебником, нажмите клавиши CTRL+PAGE DOWN. Чтобы перейти на предыдущий лист, нажмите клавиши CTRL+PAGE UP."]
[]
[]
[]
[]
[]
[null,"Время года","Торговый представитель","Продукт","Продано единиц"]
[null,"Зима","Анастасия","Апельсины",300]
[null,"Зима","Григорий","Грейпфруты",200]
[null,"Зима","Дмитрий","Яблоки",400]
[null,"Зима","Анастасия","Бананы",300]
[null,"Зима","Григорий","Апельсины",800]
[null,"Зима","Дмитрий","Грейпфруты",400]
[null,"Зима","Анастасия","Яблоки",200]
[null,"Зима","Григорий","Бананы",300]
[null,"Зима","Дмитрий","Апельсины",450]
[null,"Зима","Анастасия","Грейпфруты",230]
[null,"Зима","Григорий","Яблоки",120]
[null,"Зима","Дмитрий","Бананы",400]
[null,"Весна","Анастасия","Свекла",210]
[null,"Весна","Григорий","Картофель",300]
[null,"Весна","Дмитрий","Салат",400]
[null,"Весна","Анастасия","Редис",230]
[null,"Весна","Григорий","Свекла",900]
[null,"Весна","Дмитрий","Картофель",300]
[null,"Весна","Анастасия","Салат",200]
[null,"Весна","Григорий","Редис",1000]
[null,"Весна","Дмитрий","Свекла",220]
[null,"Весна","Анастасия","Картофель",400]
[null,"Весна","Григорий","Салат",200]
[null,"Весна","Дмитрий","Редис",400]
[null,"Лето","Анастасия","Черника",100]
[null,"Лето","Григорий","Клубника",30]
[null,"Лето","Дмитрий","Виноград",123]
[null,"Лето","Анастасия","Тыква",300]
[null,"Лето","Григорий","Черника",350]
[null,"Лето","Дмитрий","Клубника",230]
[null,"Лето","Анастасия","Виноград",120]
[null,"Лето","Григорий","Тыква",640]
[null,"Лето","Дмитрий","Черника",530]
[null,"Лето","Анастасия","Клубника",560]
[null,"Лето","Григорий","Виноград",240]
[null,"Лето","Дмитрий","Тыква",250]
[null,"Осень","Анастасия","Кабачки",62]
[null,"Осень","Григорий","Цукини",600]
[null,"Осень","Дмитрий","Яблоки",340]
[null,"Осень","Анастасия","Апельсины",205]
[null,"Осень","Григорий","Кабачки",500]
[null,"Осень","Дмитрий","Цукини",403]
[null,"Осень","Анастасия","Яблоки",503]
[null,"Осень","Григорий","Апельсины",2000]
[null,"Осень","Дмитрий","Кабачки",140]
[null,"Осень","Анастасия","Цукини",502]
[null,"Осень","Григорий","Яблоки",120]
[null,"Осень","Дмитрий","Апельсины",50]

{"sheet":"20","index":20,"n_rows":20,"n_cols":9,"rows_kept":20}
["1. В этом примере сводная таблица располагается в ячейках с B15 по C20. Перейдите в любую из этих ячеек. \n\n"]
["2. Нажмите клавиши ALT+БИ, Л, чтобы запустить список «Поля сводной таблицы». По умолчанию курсор переместится в текстовое поле «Поиск» с текстом «Введите искомые слова». Не вводите ничего, а просто один раз нажмите клавишу TAB. ПРИМЕЧАНИЕ. Если список полей не отобразился, еще раз нажмите клавиши ALT+БИ, Л."]
["3. С помощью клавиш со стрелками перейдите к полю «Торговый представитель». Нажмите клавишу ПРОБЕЛ, чтобы добавить поле «Торговый представитель» в область «Строки». Если вы хотите добавить поле «Торговый представитель» в область «Столбцы», с помощью клавиши TAB перейдите к нему в области «Строки», нажмите клавишу ПРОБЕЛ и выберите пункт «Переместить в названия столбцов». Нажмите клавишу ESC, чтобы выйти из области «Поля сводной таблицы». "]
["4. Определите, кто продал больше всех единиц товара осенью, и выберите имя этого человека в ячейке I9. "]
["Чтобы продолжить работу с учебником, нажмите клавиши CTRL+PAGE DOWN. Чтобы перейти на предыдущий лист, нажмите клавиши CTRL+PAGE UP."]
[]
[]
[{"$nulls":8},"Выберите:"]
[]
[{"$nulls":8},{"$f":"IF($I$9=\"Григорий\",\"Правильно!\",IF($I$9=\"Дмитрий\",\"Попробуйте еще раз...\",IF($I$9=\"Анастасия\",\"Не совсем верно...\",IF($I$9=\" \",\" \",\" \"))))","v":" "}]
[]
[]
[]
[]
[null,"Row Labels","Сумма по полю Продано единиц"]
[null,"Осень",{"v":5425,"d":"5,425"}]
[null,"Весна",{"v":4760,"d":"4,760"}]
[null,"Лето",{"v":3473,"d":"3,473"}]
[null,"Зима",{"v":4100,"d":"4,100"}]
[null,"Grand Total",{"v":17758,"d":"17,758"}]

{"sheet":"21","index":21,"n_rows":17,"n_cols":10,"rows_kept":17}
["1. Щелкните ячейку B16, чтобы активировать сводную таблицу «Сумма по полю Продано единиц».\n\n"]
["2. Нажмите клавиши ALT+БИ, Л, чтобы запустить список «Поля сводной таблицы». По умолчанию курсор переместится в текстовое поле «Поиск» с текстом «Введите искомые слова». Не вводите ничего, а просто один раз нажмите клавишу TAB. ПРИМЕЧАНИЕ. Если список полей не отобразился, еще раз нажмите клавиши ALT+БИ, Л."]
["3. С помощью клавиш со стрелками и клавиши ПРОБЕЛ разверните сводную таблицу из примера вертикально, добавив слева поля времена года, а под ними — поля торговые представители с отступом. Нажмите клавишу ESC, чтобы выйти из области «Поля сводной таблицы». "]
["Чтобы продолжить работу с учебником, нажмите клавиши CTRL+PAGE DOWN. Чтобы перейти на предыдущий лист, нажмите клавиши CTRL+PAGE UP."]
[{"$nulls":9},{"$f":"IF(AND(B$29=\"Осень\",$C$30=1272),\"Хорошо! Вы добавили второе\",\" \")","v":" "}]
[{"$nulls":9},{"$f":"IF(AND(B$29=\"Осень\",$C$30=1272),\"поле строки. Теперь прокрутите\",\" \")","v":" "}]
[{"$nulls":9},{"$f":"IF(AND(B$29=\"Осень\",$C$30=1272),\"страницу вниз и щелкните «Далее».\",\" \")","v":" "}]
{"$rows_empty":8}
[null,"Сумма по полю Продано единиц"]
[null,{"v":17758,"d":"17,758"}]

{"sheet":"22","index":22,"n_rows":17,"n_cols":10,"rows_kept":17}
["1. Щелкните ячейку B16, чтобы активировать сводную таблицу «Сумма по полю Продано единиц»."]
["2. Нажмите клавиши ALT+БИ, Л, чтобы запустить список «Поля сводной таблицы». По умолчанию курсор переместится в текстовое поле «Поиск» с текстом «Введите искомые слова». Не вводите ничего, а просто один раз нажмите клавишу TAB. ПРИМЕЧАНИЕ. Если список полей не отобразился, еще раз нажмите клавиши ALT+БИ, Л."]
["3. С помощью клавиш со стрелками и клавиши ПРОБЕЛ измените пример таким образом, чтобы каждый продукт отображался в собственной строке, а каждое время года — в собственном столбце."]
["Чтобы продолжить работу с учебником, нажмите клавиши CTRL+PAGE DOWN. Чтобы перейти на предыдущий лист, нажмите клавиши CTRL+PAGE UP.",{"$nulls":8},{"$f":"IF(AND($B$31=\"Яблоки\",$G$29=1505),\"Хорошо! Вы добавили\",\" \")","v":" "}]
[{"$nulls":9},{"$f":"IF(AND($B$31=\"Яблоки\",$G$29=1505),\"поле строки слева,\",\" \")","v":" "}]
[{"$nulls":9},{"$f":"IF(AND($B$31=\"Яблоки\",$G$29=1505),\"и поле столбца с четырьмя\",\" \")","v":" "}]
[{"$nulls":9},{"$f":"IF(AND($B$31=\"Яблоки\",$G$29=1505),\"новыми столбцами. Прокрутите\",\" \")","v":" "}]
[{"$nulls":9},{"$f":"IF(AND($B$31=\"Яблоки\",$G$29=1505),\"страницу вниз и щелкните «Далее»...\",\" \")","v":" "}]
{"$rows_empty":7}
[null,"Сумма по полю Продано единиц"]
[null,{"v":17758,"d":"17,758"}]

{"sheet":"23","index":23,"n_rows":20,"n_cols":18,"rows_kept":20}
["1. Щелкните ячейку B17, чтобы активировать сводную таблицу «Сумма по полю Продано единиц».\n\n"]
["2. Нажмите клавиши ALT+БИ, Л, чтобы запустить список «Поля сводной таблицы». По умолчанию курсор переместится в текстовое поле «Поиск» с текстом «Введите искомые слова». Не вводите ничего, а просто один раз нажмите клавишу TAB. ПРИМЕЧАНИЕ. Если список полей не отобразился, еще раз нажмите клавиши ALT+БИ, Л."]
["3. С помощью клавиш со стрелками и клавиш TAB и ПРОБЕЛ измените пример таким образом, чтобы имена торговых представителях отображались слева, а времена года — под ними с отступом."]
["Чтобы продолжить работу с учебником, нажмите клавиши CTRL+PAGE DOWN. Чтобы перейти на предыдущий лист, нажмите клавиши CTRL+PAGE UP."]
[{"$nulls":9},{"$f":"IF(AND($B$18=\"Дмитрий\",$C$18=5036),\"Хорошо! Теперь стало удобнее\",\" \")","v":" "}]
[{"$nulls":9},{"$f":"IF(AND($B$18=\"Дмитрий\",$C$18=5036),\"читать данные. Прокрутите страницу\",\" \")","v":" "}]
[{"$nulls":9},{"$f":"IF(AND($B$18=\"Дмитрий\",$C$18=5036),\"вниз и щелкните «Далее»...\",\" \")","v":" "}]
{"$rows_empty":9}
[null,null,"Column Labels"]
[null,null,"Дмитрий",{"$nulls":3},"Дмитрий Total","Григорий",{"$nulls":3},"Григорий Total","Анастасия",{"$nulls":3},"Анастасия Total","Grand Total"]
[null,null,"Осень","Весна","Лето","Зима",null,"Осень","Весна","Лето","Зима",null,"Осень","Весна","Лето","Зима"]
[null,"Сумма по полю Продано единиц",933,{"v":1320,"d":"1,320"},{"v":1133,"d":"1,133"},{"v":1650,"d":"1,650"},{"v":5036,"d":"5,036"},{"v":3220,"d":"3,220"},{"v":2400,"d":"2,400"},{"v":1260,"d":"1,260"},{"v":1420,"d":"1,420"},{"v":8300,"d":"8,300"},{"v":1272,"d":"1,272"},{"v":1040,"d":"1,040"},{"v":1080,"d":"1,080"},{"v":1030,"d":"1,030"},{"v":4422,"d":"4,422"},{"v":17758,"d":"17,758"}]

{"sheet":"24","index":24,"n_rows":19,"n_cols":8,"rows_kept":19}
["1. Щелкните ячейку B18, чтобы активировать сводную таблицу «Сумма по полю Продано единиц»."]
["2. Нажмите клавиши ALT+БИ, Л, чтобы запустить список «Поля сводной таблицы». По умолчанию курсор переместится в текстовое поле «Поиск» с текстом «Введите искомые слова». Не вводите ничего, а просто один раз нажмите клавишу TAB. ПРИМЕЧАНИЕ. Если список полей не отобразился, еще раз нажмите клавиши ALT+БИ, Л."]
["3. С помощью клавиш со стрелками и клавиш TAB и ПРОБЕЛ измените пример таким образом, чтобы для каждого торгового представителя был собственный столбец, времена года отображались слева, а под ними были указаны продукты с отступом."]
["4. Щелкните ячейку I9 и выберите количество грейпфрутов, проданных Дмитрием за зиму."]
["Чтобы продолжить работу с учебником, нажмите клавиши CTRL+PAGE DOWN. Чтобы перейти на предыдущий лист, нажмите клавиши CTRL+PAGE UP."]
[]
[]
[]
[{"$nulls":7},"Выберите:"]
[]
[{"$nulls":7},{"$f":"IF($H$10=400,\"Правильно!\",IF($H$10=530,\"Попробуйте еще раз…\",IF($H$10=123,\"Не совсем верно…\",\" \")))","v":" "}]
[]
[]
[]
[]
[]
[]
[null,"Сумма по полю Продано единиц"]
[null,{"v":17758,"d":"17,758"}]

{"sheet":"Дополнительные сведения","index":25,"n_rows":8,"n_cols":1,"rows_kept":8}
["Хорошо! Сводные таблицы дарят невероятные возможности, не правда ли?"]
["Но не стоит на этом останавливаться! Вы можете узнать еще много нового…"]
["Подробнее о сводных таблицах\nУзнайте о дополнительных возможностях сводных таблиц, прочитав эту полезную статью."]
["Об обновлении\nПрочитайте эту важную статью и узнайте, как обновлять сводные таблицы. "]
["Сообщество\nОбщайтесь с другими фанатами Excel. Вы можете помогать друг другу."]
[]
[]
[" "]